fUST/lending_fUST_20250821
["ID","MTS","AMOUNT","RATE_DAILY","PERIOD"]
[380456162,1755779441364,-175.292575,0.00021291,2]
[380456163,1755779441373,-175.292575,0.00021291,2]
[380456164,1755779441382,-175.292575,0.00021291,2]
[380456165,1755779441391,-175.292575,0.00021291,2]
[380456166,1755779441401,-151.0,0.00021291,2]
[380456167,1755779441410,-151.0,0.00021291,2]
[380456168,1755779441419,-151.0,0.00021291,2]
[380456169,1755779441428,-151.0,0.00021291,2]
[380456170,1755779441439,-151.0,0.00021291,2]
[380456171,1755779441448,-151.0,0.00021291,2]
[380456172,1755779441457,-151.0,0.00021291,2]
[380456173,1755779441466,-500.820196,0.00021291,2]
[380456174,1755779441475,-500.820196,0.00021291,2]
[380456175,1755779441484,-500.820196,0.00021291,2]
[380456176,1755779441493,-500.820196,0.00021291,2]
[380456177,1755779441503,-151.0,0.00021291,2]
[380456178,1755779441512,-151.0,0.00021291,2]
[380456179,1755779441522,-151.0,0.00021291,2]
[380456180,1755779441530,-151.0,0.00021291,2]
[380456181,1755779441539,-151.0,0.00021291,2]
[380456182,1755779441549,-151.0,0.00021291,2]
[380456183,1755779441559,-292.212648,0.00021291,2]
[380456184,1755779441567,-151.0,0.00021291,2]
[380456185,1755779441576,-652.684774,0.00021291,2]
[380456186,1755779441585,-652.684774,0.00021291,2]
[380456187,1755779441594,-652.684774,0.00021291,2]
[380456188,1755779441603,-652.684774,0.00021291,2]
[380456189,1755779441612,-151.0,0.00021291,2]
[380456190,1755779441621,-151.0,0.00021291,2]
[380456191,1755779441631,-151.0,0.00021291,2]
[380456192,1755779441640,-151.0,0.00021291,2]
[380456193,1755779441649,-151.0,0.00021291,2]
[380456194,1755779441658,-151.0,0.00021291,2]
[380456195,1755779441667,-370000.0,0.00021291,2]
[380456196,1755779441676,-544.7,0.00021388,2]
[380456197,1755779441689,-874.9740542,0.00021401,2]
[380456198,1755779441699,-21533.99999905,0.00021413,2]
[380456199,1755779441708,-2275.39626204,0.00021428,2]
[380456200,1755779441717,-342.0,0.0002152,2]
[380456201,1755779441727,-500.0,0.00021545,2]
[380456202,1755779441736,-342.0,0.00021578,2]
[380456203,1755779441745,-800.0,0.00021613,2]
[380456204,1755779441754,-2275.39626204,0.00021649,2]
[380456205,1755779441764,-172.432,0.00021677,2]
[380456206,1755779441773,-1382.033,0.00021677,2]
[380456207,1755779441782,-637.0,0.00021771,2]
[380456208,1755779441791,-2154.0,0.00021771,2]
[380456209,1755779441801,-408.0,0.00021771,2]
[380456210,1755779441810,-420.0,0.00021777,2]
[380456211,1755779441819,-420.0,0.00021777,2]
[380456212,1755779441829,-420.0,0.00021777,2]
[380456213,1755779441838,-324.0,0.00021777,2]
[380456214,1755779441848,-279.41198644,0.00021786,2]
[380456215,1755779441857,-14639.75472171,0.00021786,2]
[380456216,1755779441866,-151.0,0.000218,4]
[380456217,1755779441876,-151.0,0.000218,3]
[380456218,1755779441885,-500.0,0.00021816,2]
[380456219,1755779441895,-198.0,0.00021816,2]
[380456220,1755779441904,-151.0,0.00021816,2]
[380456221,1755779441914,-151.0,0.00021816,2]
[380456222,1755779441923,-151.0,0.00021816,2]
[380456223,1755779441932,-151.0,0.00021816,2]
[380456224,1755779441943,-151.0,0.00021816,2]
[380456225,1755779441952,-151.0,0.00021816,2]
[380456226,1755779441961,-500.0,0.00021816,2]
[380456227,1755779441972,-500.0,0.00021816,2]
[380456228,1755779441982,-151.0,0.00021816,2]
[380456229,1755779441991,-151.0,0.00021816,2]
[380456230,1755779442001,-211.94116543,0.00021816,2]
[380456231,1755779442010,-151.0,0.00021816,2]
[380456232,1755779442021,-500.0,0.00021816,2]
[380456233,1755779442030,-500.0,0.00021816,2]
[380456234,1755779442039,-180.91302652,0.00021816,2]
[380456235,1755779442048,-500.0,0.00021816,2]
[380456236,1755779442058,-289.12337144,0.00021816,2]
[380456237,1755779442067,-198.0,0.00021816,2]
[380456238,1755779442077,-1000.0,0.00021817,2]
[380456239,1755779442087,-173.49018429,0.00021817,2]
[380456240,1755779442097,-500.0,0.00021819,2]
[380456241,1755779442106,-1000.0,0.00021821,2]
[380456242,1755779442116,-1000.0,0.00021821,2]
[380456243,1755779442125,-500.0,0.00021821,2]
[380456244,1755779442134,-679.00579146,0.00021821,2]
[380456245,1755779442144,-1000.0,0.00021821,2]
[380456246,1755779442154,-1000.0,0.00021821,2]
[380456247,1755779442164,-1000.0,0.00021821,2]
[380456248,1755779442173,-1000.0,0.00021821,2]
[380456249,1755779442183,-1001.66438607,0.00021821,2]
[380456250,1755779442194,-1000.0,0.00021821,2]
[380456251,1755779442204,-1000.0,0.00021821,2]
[380456252,1755779442213,-1000.0,0.00021821,2]
[380456253,1755779442222,-1000.0,0.00021821,2]
[380456254,1755779442232,-1000.0,0.00021821,2]
[380456255,1755779442242,-1000.0,0.00021821,2]
[380456256,1755779442251,-1000.0,0.00021821,2]
[380456257,1755779442260,-1000.0,0.00021821,2]
[380456258,1755779442269,-1000.0,0.00021821,2]
[380456259,1755779442279,-1000.0,0.00021821,2]
[380456260,1755779442288,-1009.5192411,0.00021821,2]
[380456261,1755779442298,-1000.0,0.00021821,2]
[380456262,1755779442307,-726.98812925,0.00021821,2]
[380456263,1755779442316,-518.81068355,0.00021821,2]
[380456264,1755779442326,-151.0,0.00021821,2]
[380456265,1755779442335,-151.0,0.00021821,2]
[380456266,1755779442345,-1680.0,0.00021828,2]
[380456267,1755779442355,-151.0,0.00021828,2]
[380456268,1755779442364,-151.0,0.00021828,2]
[380456269,1755779442374,-151.0,0.00021828,2]
[380456270,1755779442383,-274.941972,0.00021828,2]
[380456271,1755779442393,-342.0,0.00021837,2]
[380456272,1755779442402,-5000.0,0.00021842,2]
[380456273,1755779442411,-1700.0,0.00021844,2]
[380456274,1755779442422,-2275.39626204,0.0002187,2]
[380456275,1755779442431,-151.0,0.0002187,2]
[380456276,1755779442444,-151.0,0.0002187,2]
[380456277,1755779442455,-151.0,0.0002187,2]
[380456278,1755779442465,-500.820196,0.0002187,2]
[380456279,1755779442475,-500.820196,0.0002187,2]
[380456280,1755779442484,-500.820196,0.0002187,2]
[380456281,1755779442494,-500.820196,0.0002187,2]
[380456282,1755779442503,-151.0,0.0002187,2]
[380456283,1755779442514,-309.77330808,0.00021881,2]
[380456292,1755779442810,-1252.65925509,0.00021881,2]
[380456293,1755779443224,-24.88354083,0.00021881,2]
[380456303,1755779445838,-598.04497712,0.00020049,2]
[380456304,1755779445848,-151.0,0.00021046,2]
[380456305,1755779445857,-542.84,0.00021052,2]
[380456306,1755779445866,-678.26,0.00021281,10]
[380456307,1755779445875,-151.0,0.00021291,2]
[380456308,1755779445887,-542.84,0.000216,2]
[380456309,1755779445900,-151.0,0.00021821,2]
[380456310,1755779445913,-92.683896,0.00021881,2]
[380456311,1755779445923,-178.2630597,0.00021898,2]
[380456312,1755779445932,-277.0,0.000219,2]
[380456313,1755779445943,-277.6,0.000219,2]
[380456314,1755779445952,-151.0,0.000219,4]
[380456315,1755779445962,-151.0,0.000219,4]
[380456316,1755779445971,-250.0,0.000219,10]
[380456317,1755779445983,-294.02357718,0.00021901,2]
[380456318,1755779445992,-62.54449001,0.00021916,2]
[380456319,1755779446202,-137.45550999,0.00021916,2]
[380456320,1755779446212,-356.73797255,0.00021916,2]
[380456321,1755779446222,-480.0,0.00021917,3]
[380456322,1755779446232,-480.0,0.00021917,3]
[380456323,1755779446241,-480.0,0.00021917,3]
[380456324,1755779446250,-12690.45384448,0.00021917,3]
[380456325,1755779446259,-480.0,0.00021917,3]
[380456326,1755779446268,-928.2,0.00021917,3]
[380456327,1755779446277,-151.0,0.00021917,3]
[380456328,1755779446286,-151.0,0.00021917,3]
[380456329,1755779446295,-480.0,0.00021917,3]
[380456330,1755779446304,-480.0,0.00021917,3]
[380456331,1755779446313,-480.0,0.00021917,3]
[380456332,1755779446322,-480.0,0.00021917,3]
[380456333,1755779446331,-480.0,0.00021917,3]
[380456334,1755779446340,-480.0,0.00021917,3]
[380456335,1755779446349,-444.30524327,0.00021917,3]
[380456336,1755779446358,-480.0,0.00021917,3]
[380456337,1755779446368,-1153.15,0.00021917,3]
[380456338,1755779446377,-480.0,0.00021917,3]
[380456339,1755779446387,-480.0,0.00021917,3]
[380456340,1755779446396,-515.33464057,0.00021917,3]
[380456341,1755779446405,-480.0,0.00021917,3]
[380456342,1755779446415,-480.0,0.00021917,3]
[380456343,1755779446425,-500.0,0.00021917,3]
[380456344,1755779446434,-480.0,0.00021917,3]
[380456345,1755779446445,-480.0,0.00021917,3]
[380456346,1755779446455,-480.0,0.00021917,3]
[380456347,1755779446464,-480.0,0.00021917,3]
[380456348,1755779446473,-480.0,0.00021917,3]
[380456349,1755779446482,-480.0,0.00021917,3]
[380456350,1755779446491,-480.0,0.00021917,3]
[380456351,1755779446499,-480.0,0.00021917,3]
[380456352,1755779446508,-480.0,0.00021917,3]
[380456353,1755779446517,-480.0,0.00021917,3]
[380456354,1755779446526,-892.34,0.00021917,3]
[380456355,1755779446535,-480.0,0.00021917,3]
[380456356,1755779446543,-480.0,0.00021917,3]
[380456357,1755779446552,-480.0,0.00021917,3]
[380456358,1755779446561,-480.0,0.00021917,3]
[380456359,1755779446572,-480.0,0.00021917,3]
[380456360,1755779446580,-480.0,0.00021917,3]
[380456361,1755779446590,-480.0,0.00021917,3]
[380456362,1755779446599,-480.0,0.00021917,3]
[380456363,1755779446609,-480.0,0.00021917,3]
[380456364,1755779446617,-480.0,0.00021917,3]
[380456365,1755779446626,-370.23515897,0.00021917,3]
[380456366,1755779446636,-462.04283562,0.00021917,3]
[380456367,1755779446645,-480.0,0.00021917,2]
[380456368,1755779446656,-480.0,0.00021917,3]
[380456369,1755779446665,-182.92821281,0.00021917,3]
[380456370,1755779446675,-650.29,0.00021917,3]
[380456371,1755779446684,-480.0,0.00021917,3]
[380456372,1755779446695,-480.0,0.00021917,3]
[380456373,1755779446705,-480.0,0.00021917,3]
[380456374,1755779446713,-205.58505684,0.00021917,3]
[380456375,1755779446723,-490.15048165,0.00021917,3]
[380456376,1755779446732,-480.0,0.00021917,3]
[380456377,1755779446741,-460.0,0.00021917,3]
[380456378,1755779446751,-480.0,0.00021917,3]
[380456379,1755779446760,-799.01,0.00021917,3]
[380456380,1755779446770,-480.0,0.00021917,3]
[380456381,1755779446779,-234.19080196,0.00021917,3]
[380456382,1755779446788,-480.0,0.00021917,3]
[380456383,1755779446797,-480.0,0.00021917,3]
[380456384,1755779446807,-480.0,0.00021917,3]
[380456385,1755779446817,-242.83146376,0.00021917,3]
[380456386,1755779446826,-480.0,0.00021917,3]
[380456387,1755779446835,-618.16571935,0.00021917,3]
[380456388,1755779446844,-480.0,0.00021917,3]
[380456389,1755779446853,-515.49522421,0.00021917,3]
[380456390,1755779446862,-480.0,0.00021917,3]
[380456391,1755779446872,-610.81,0.00021917,3]
[380456392,1755779446881,-480.0,0.00021917,3]
[380456393,1755779446890,-423.38509182,0.00021917,3]
[380456394,1755779446899,-480.0,0.00021917,3]
[380456395,1755779446909,-480.0,0.00021917,3]
[380456396,1755779446919,-480.0,0.00021917,3]
[380456397,1755779446928,-480.0,0.00021917,3]
[380456398,1755779446938,-357.31775641,0.00021917,3]
[380456399,1755779446948,-536.71,0.00021917,3]
[380456400,1755779446957,-480.0,0.00021917,3]
[380456401,1755779446967,-532.8,0.00021917,3]
[380456402,1755779446978,-480.0,0.00021917,3]
[380456403,1755779446991,-440.0,0.00021917,3]
[380456404,1755779447000,-1167.25,0.00021917,3]
[380456405,1755779447010,-480.0,0.00021917,3]
[380456406,1755779447019,-503.31374432,0.00021917,3]
[380456407,1755779447030,-480.0,0.00021917,3]
[380456408,1755779447044,-480.0,0.00021917,3]
[380456409,1755779447065,-246.54293743,0.00021917,3]
[380456410,1755779447075,-678.95,0.00021917,3]
[380456411,1755779447084,-480.0,0.00021917,3]
[380456412,1755779447093,-480.0,0.00021917,3]
[380456413,1755779447102,-480.0,0.00021917,3]
[380456414,1755779447112,-461.47091946,0.00021917,3]
[380456415,1755779447122,-480.0,0.00021917,3]
[380456416,1755779447131,-480.0,0.00021917,3]
[380456417,1755779447141,-480.0,0.00021917,3]
[380456418,1755779447151,-480.0,0.00021917,3]
[380456419,1755779447160,-667.14,0.00021917,3]
[380456420,1755779447169,-480.0,0.00021917,3]
[380456421,1755779447179,-480.0,0.00021917,3]
[380456422,1755779447189,-480.0,0.00021917,3]
[380456423,1755779447198,-480.0,0.00021917,3]
[380456424,1755779447208,-480.0,0.00021917,3]
[380456425,1755779447218,-680.61,0.00021917,3]
[380456426,1755779447227,-480.0,0.00021917,3]
[380456427,1755779447236,-480.09,0.00021917,3]
[380456428,1755779447246,-480.0,0.00021917,3]
[380456429,1755779447256,-480.0,0.00021917,3]
[380456430,1755779447265,-480.0,0.00021917,3]
[380456431,1755779447275,-480.0,0.00021917,3]
[380456432,1755779447283,-387.08675881,0.00021917,3]
[380456433,1755779447293,-538.21,0.00021917,3]
[380456434,1755779447303,-480.0,0.00021917,3]
[380456435,1755779447313,-480.0,0.00021917,3]
[380456436,1755779447322,-480.0,0.00021917,3]
[380456437,1755779447331,-665.23,0.00021917,3]
[380456438,1755779447340,-363.88838292,0.00021917,3]
[380456439,1755779447350,-480.0,0.00021917,3]
[380456440,1755779447359,-591.45,0.00021917,3]
[380456441,1755779447370,-495.57,0.00021917,3]
[380456442,1755779447381,-480.0,0.00021917,2]
[380456443,1755779447390,-613.54,0.00021917,3]
[380456444,1755779447400,-480.0,0.00021917,3]
[380456445,1755779447409,-480.0,0.00021917,3]
[380456446,1755779447418,-480.0,0.00021917,3]
[380456447,1755779447427,-480.0,0.00021917,3]
[380456448,1755779447436,-406.71276335,0.00021917,3]
[380456449,1755779447447,-480.0,0.00021917,3]
[380456450,1755779447456,-1210.44,0.00021917,3]
[380456451,1755779447465,-480.0,0.00021917,3]
[380456452,1755779447475,-844.1,0.00021917,3]
[380456453,1755779447486,-361.98468523,0.00021917,3]
[380456454,1755779447496,-530.55,0.00021917,3]
[380456455,1755779447505,-480.0,0.00021917,3]
[380456456,1755779447514,-1791.57,0.00021917,3]
[380456457,1755779447523,-480.0,0.00021917,3]
[380456458,1755779447532,-480.0,0.00021917,3]
[380456459,1755779447541,-480.0,0.00021917,3]
[380456460,1755779447551,-480.0,0.00021917,3]
[380456461,1755779447560,-480.0,0.00021917,3]
[380456462,1755779447569,-480.0,0.00021917,3]
[380456463,1755779447578,-679.34,0.00021917,3]
[380456464,1755779447588,-480.0,0.00021917,3]
[380456465,1755779447597,-878.72,0.00021917,3]
[380456466,1755779447607,-151.0,0.00021917,2]
[380456467,1755779447615,-151.0,0.00021917,2]
[380456468,1755779447625,-480.0,0.00021917,3]
[380456469,1755779447634,-151.0,0.00021917,2]
[380456470,1755779447643,-151.0,0.00021917,2]
[380456471,1755779447652,-151.0,0.00021917,2]
[380456472,1755779447662,-151.0,0.00021917,2]
[380456473,1755779447671,-151.0,0.00021917,2]
[380456474,1755779447680,-233.403046,0.00021917,2]
[380456475,1755779447691,-151.0,0.00021917,2]
[380456476,1755779447701,-151.0,0.00021917,2]
[380456477,1755779447711,-151.0,0.00021917,2]
[380456478,1755779447720,-151.0,0.00021917,2]
[380456479,1755779447730,-151.0,0.00021917,2]
[380456480,1755779447740,-480.0,0.00021917,3]
[380456481,1755779447749,-1000.0,0.00021917,3]
[380456482,1755779447759,-254.49962,0.00021917,2]
[380456483,1755779447768,-480.0,0.00021917,3]
[380456484,1755779447777,-151.0,0.00021917,2]
[380456485,1755779447786,-483.63,0.00021917,3]
[380456486,1755779447796,-151.0,0.00021917,2]
[380456487,1755779447815,-480.0,0.00021917,3]
[380456488,1755779447825,-151.0,0.00021917,2]
[380456489,1755779447833,-151.0,0.00021917,2]
[380456490,1755779447843,-480.0,0.00021917,3]
[380456491,1755779447851,-151.0,0.00021917,2]
[380456492,1755779447860,-161.236394,0.00021917,2]
[380456493,1755779447869,-480.0,0.00021917,3]
[380456494,1755779447878,-422.87405714,0.00021917,3]
[380456495,1755779447887,-480.0,0.00021917,3]
[380456496,1755779447896,-480.0,0.00021917,3]
[380456497,1755779447905,-480.0,0.00021917,3]
[380456498,1755779447915,-480.0,0.00021917,3]
[380456499,1755779447924,-1768.89,0.00021917,3]
[380456500,1755779447934,-480.0,0.00021917,3]
[380456501,1755779447945,-591.87,0.00021917,3]
[380456502,1755779447953,-480.0,0.00021917,3]
[380456503,1755779447963,-593.63,0.00021917,3]
[380456504,1755779447972,-866.98,0.00021917,3]
[380456505,1755779447983,-151.0,0.00021917,2]
[380456506,1755779447993,-480.0,0.00021917,3]
[380456507,1755779448002,-480.0,0.00021917,3]
[380456508,1755779448011,-460.0,0.00021917,3]
[380456509,1755779448021,-597.85,0.00021917,3]
[380456510,1755779448030,-480.0,0.00021917,3]
[380456511,1755779448039,-480.0,0.00021917,3]
[380456512,1755779448048,-480.0,0.00021917,3]
[380456513,1755779448058,-460.0,0.00021917,3]
[380456514,1755779448068,-668.72,0.00021917,3]
[380456515,1755779448079,-480.31330389,0.00021917,3]
[380456516,1755779448088,-480.0,0.00021917,3]
[380456517,1755779448098,-320.79441607,0.00021917,3]
[380456518,1755779448107,-480.0,0.00021917,3]
[380456519,1755779448116,-480.0,0.00021917,3]
[380456520,1755779448125,-480.0,0.00021917,3]
[380456521,1755779448134,-480.0,0.00021917,3]
[380456522,1755779448143,-480.0,0.00021917,3]
[380456523,1755779448153,-480.0,0.00021917,3]
[380456524,1755779448163,-230.928954,0.00021917,2]
[380456525,1755779448172,-480.0,0.00021917,3]
[380456526,1755779448181,-230.928954,0.00021917,2]
[380456527,1755779448193,-230.928954,0.00021917,2]
[380456528,1755779448202,-230.928954,0.00021917,2]
[380456529,1755779448211,-230.928954,0.00021917,2]
[380456530,1755779448221,-805.45,0.00021917,3]
[380456531,1755779448231,-230.928954,0.00021917,2]
[380456532,1755779448241,-230.928954,0.00021917,2]
[380456533,1755779448250,-230.928954,0.00021917,2]
[380456534,1755779448259,-230.928954,0.00021917,2]
[380456535,1755779448269,-480.0,0.00021917,3]
[380456536,1755779448279,-230.928954,0.00021917,2]
[380456537,1755779448288,-230.928954,0.00021917,2]
[380456538,1755779448298,-230.928954,0.00021917,2]
[380456539,1755779448307,-230.928954,0.00021917,2]
[380456540,1755779448317,-230.928954,0.00021917,2]
[380456541,1755779448326,-230.928954,0.00021917,2]
[380456542,1755779448334,-480.0,0.00021917,3]
[380456543,1755779448344,-230.928954,0.00021917,2]
[380456544,1755779448353,-480.0,0.00021917,3]
[380456545,1755779448363,-151.0,0.00021917,2]
[380456546,1755779448372,-175.40998848,0.00021917,3]
[380456547,1755779448381,-151.0,0.00021917,2]
[380456548,1755779448390,-480.0,0.00021917,3]
[380456549,1755779448399,-480.0,0.00021917,3]
[380456550,1755779448409,-480.0,0.00021917,3]
[380456551,1755779448418,-480.0,0.00021917,3]
[380456552,1755779448427,-480.0,0.00021917,3]
[380456553,1755779448437,-480.0,0.00021917,3]
[380456554,1755779448449,-424.51134418,0.00021917,3]
[380456555,1755779448458,-821.04,0.00021917,3]
[380456556,1755779448468,-480.0,0.00021917,3]
[380456557,1755779448477,-480.0,0.00021917,3]
[380456558,1755779448487,-865.79,0.00021917,3]
[380456559,1755779448497,-480.0,0.00021917,3]
[380456560,1755779448506,-480.0,0.00021917,3]
[380456561,1755779448516,-480.0,0.00021917,3]
[380456562,1755779448526,-480.0,0.00021917,3]
[380456563,1755779448536,-1257.6,0.00021917,3]
[380456564,1755779448546,-2493.55,0.00021917,3]
[380456565,1755779448555,-480.0,0.00021917,3]
[380456566,1755779448565,-480.0,0.00021917,3]
[380456567,1755779448574,-480.0,0.00021917,3]
[380456568,1755779448583,-480.0,0.00021917,3]
[380456569,1755779448593,-480.0,0.00021917,3]
[380456570,1755779448602,-480.0,0.00021917,3]
[380456571,1755779448612,-778.66,0.00021917,3]
[380456572,1755779448622,-480.0,0.00021917,3]
[380456573,1755779448631,-481.31023006,0.00021917,3]
[380456574,1755779448640,-480.0,0.00021917,3]
[380456575,1755779448649,-636.3,0.00021917,3]
[380456576,1755779448659,-480.0,0.00021917,3]
[380456577,1755779448669,-406.04324337,0.00021917,3]
[380456578,1755779448678,-480.0,0.00021917,3]
[380456579,1755779448687,-300.00000001,0.00021917,3]
[380456580,1755779448698,-1556.59,0.00021917,3]
[380456581,1755779448707,-480.0,0.00021917,3]
[380456582,1755779448716,-480.0,0.00021917,3]
[380456583,1755779448727,-480.0,0.00021917,3]
[380456584,1755779448736,-2551.09,0.00021917,3]
[380456585,1755779448746,-480.0,0.00021917,3]
[380456586,1755779448755,-1015.41,0.00021917,3]
[380456587,1755779448764,-480.0,0.00021917,3]
[380456588,1755779448773,-480.0,0.00021917,3]
[380456589,1755779448782,-480.0,0.00021917,3]
[380456590,1755779448791,-813.85,0.00021917,3]
[380456591,1755779448801,-480.0,0.00021917,3]
[380456592,1755779448810,-1323.23,0.00021917,3]
[380456593,1755779448819,-480.0,0.00021917,3]
[380456594,1755779448828,-480.0,0.00021917,3]
[380456595,1755779448837,-480.0,0.00021917,3]
[380456596,1755779448847,-480.0,0.00021917,3]
[380456597,1755779448856,-174.17599034,0.00021917,3]
[380456598,1755779448865,-480.0,0.00021917,3]
[380456599,1755779448874,-480.43415588,0.00021917,3]
[380456600,1755779448883,-480.0,0.00021917,3]
[380456601,1755779448892,-480.0,0.00021917,3]
[380456602,1755779448901,-480.0,0.00021917,3]
[380456603,1755779448910,-480.0,0.00021917,3]
[380456604,1755779448919,-481.66041453,0.00021917,3]
[380456605,1755779448928,-151.0,0.00021917,2]
[380456606,1755779448937,-481.30798998,0.00021917,3]
[380456607,1755779448948,-480.0,0.00021917,3]
[380456608,1755779448957,-480.0,0.00021917,3]
[380456609,1755779448966,-480.0,0.00021917,3]
[380456610,1755779448978,-151.0,0.00021917,2]
[380456611,1755779448990,-480.0,0.00021917,3]
[380456612,1755779449000,-151.0,0.00021917,2]
[380456613,1755779449010,-151.0,0.00021917,2]
[380456614,1755779449019,-151.0,0.00021917,2]
[380456615,1755779449030,-480.0,0.00021917,3]
[380456616,1755779449040,-151.0,0.00021917,2]
[380456617,1755779449051,-480.0,0.00021917,3]
[380456618,1755779449062,-480.0,0.00021917,3]
[380456619,1755779449072,-480.0,0.00021917,3]
[380456620,1755779449082,-151.0,0.00021917,2]
[380456621,1755779449091,-151.0,0.00021917,2]
[380456622,1755779449100,-480.0,0.00021917,3]
[380456623,1755779449110,-151.0,0.00021917,2]
[380456624,1755779449120,-480.0,0.00021917,3]
[380456625,1755779449130,-480.0,0.00021917,3]
[380456626,1755779449139,-480.0,0.00021917,3]
[380456627,1755779449148,-480.0,0.00021917,3]
[380456628,1755779449158,-480.0,0.00021917,3]
[380456629,1755779449167,-480.0,0.00021917,3]
[380456630,1755779449176,-1161.54,0.00021917,3]
[380456631,1755779449185,-480.0,0.00021917,3]
[380456632,1755779449197,-151.0,0.00021917,2]
[380456633,1755779449207,-151.0,0.00021917,2]
[380456634,1755779449216,-151.0,0.00021917,2]
[380456635,1755779449226,-151.0,0.00021917,2]
[380456636,1755779449236,-151.0,0.00021917,2]
[380456637,1755779449246,-151.0,0.00021917,2]
[380456638,1755779449256,-480.0,0.00021917,3]
[380456639,1755779449264,-151.0,0.00021917,2]
[380456640,1755779449274,-1302.92,0.00021917,3]
[380456641,1755779449283,-151.0,0.00021917,2]
[380456642,1755779449292,-480.0,0.00021917,3]
[380456643,1755779449302,-151.0,0.00021917,2]
[380456644,1755779449312,-151.0,0.00021917,2]
[380456645,1755779449321,-480.0,0.00021917,3]
[380456646,1755779449331,-568.92,0.00021917,3]
[380456647,1755779449340,-151.0,0.00021917,2]
[380456648,1755779449350,-480.0,0.00021917,3]
[380456649,1755779449359,-960.5,0.00021917,3]
[380456650,1755779449369,-151.0,0.00021917,2]
[380456651,1755779449378,-151.0,0.00021917,2]
[380456652,1755779449387,-151.0,0.00021917,2]
[380456653,1755779449396,-151.0,0.00021917,2]
[380456654,1755779449406,-151.0,0.00021917,2]
[380456655,1755779449416,-151.0,0.00021917,2]
[380456656,1755779449425,-151.0,0.00021917,2]
[380456657,1755779449435,-151.0,0.00021917,2]
[380456658,1755779449447,-151.0,0.00021917,2]
[380456659,1755779449457,-151.0,0.00021917,2]
[380456660,1755779449467,-151.0,0.00021917,2]
[380456661,1755779449477,-151.0,0.00021917,2]
[380456662,1755779449486,-151.0,0.00021917,2]
[380456663,1755779449496,-151.0,0.00021917,2]
[380456664,1755779449505,-151.0,0.00021917,2]
[380456665,1755779449514,-480.0,0.00021917,3]
[380456666,1755779449523,-151.0,0.00021917,2]
[380456667,1755779449533,-278.464464,0.00021917,2]
[380456668,1755779449542,-378.38501889,0.00021917,3]
[380456669,1755779449551,-151.0,0.00021917,2]
[380456670,1755779449560,-266.420376,0.00021917,2]
[380456671,1755779449570,-491.38,0.00021917,3]
[380456672,1755779449579,-480.0,0.00021917,3]
[380456673,1755779449589,-480.0,0.00021917,3]
[380456674,1755779449598,-480.0,0.00021917,3]
[380456675,1755779449607,-480.0,0.00021917,3]
[380456676,1755779449616,-480.0,0.00021917,3]
[380456677,1755779449626,-1383.28,0.00021917,3]
[380456678,1755779449635,-560.67,0.00021917,3]